{"text_format":"3","workbook":"xlsx","n_sheets":1,"sheets":["可网办14-450"],"not_rendered":{"defined_names":1,"comments":1},"read":"whole","date_system":"1900"}

{"sheet":"可网办14-450","index":0,"n_rows":452,"n_cols":5,"rows_kept":452,"merged":[[0,0,0,4]]}
["伊川县“全程网办”政务服务事项清单（第一批）                                                                                               （14个单位450项）"]
["序号","部门名称","业务办理项名称","网办方式","网上办理地址"]
[{"$f":"ROW()-2","v":1},"自然资源局","土地开垦区内开发未确定使用权的国有土地从事生产审查（一次性开发二百公顷以上四百公顷以下的）","河南政务服务网","https://www.hnzwfw.gov.cn/"]
[2,"自然资源局","划拨国有建设用地使用权转为协议出让国有建设用地使用权审核","河南政务服务网","https://www.hnzwfw.gov.cn/"]
[3,"自然资源局","划拨国有建设用地使用权出租审核","河南政务服务网","https://www.hnzwfw.gov.cn/"]
[4,"自然资源局","划拨国有建设用地使用权转让审核","河南政务服务网","https://www.hnzwfw.gov.cn/"]
[5,"自然资源局","划拨或出让国有建设用地改变用途审核","河南政务服务网","https://www.hnzwfw.gov.cn/"]
[6,"自然资源局","划拨国有建设用地使用权审核","河南政务服务网","https://www.hnzwfw.gov.cn/"]
[7,"自然资源局","协议出让国有建设用地使用权审核","河南政务服务网","https://www.hnzwfw.gov.cn/"]
[8,"自然资源局","租赁国有建设用地使用权审核","河南政务服务网","https://www.hnzwfw.gov.cn/"]
[9,"自然资源局","国有建设用地使用权出让后土地使用权分割转让批准","河南政务服务网","https://www.hnzwfw.gov.cn/"]
[10,"自然资源局","国有建设用地使用权收回","河南政务服务网","https://www.hnzwfw.gov.cn/"]
[11,"自然资源局","国有建设用地使用权续期","河南政务服务网","https://www.hnzwfw.gov.cn/"]
[12,"自然资源局","临时用地审批","河南政务服务网","https://www.hnzwfw.gov.cn/"]
[13,"自然资源局","申请核发建设项目用地预审与选址意见书","河南政务服务网","https://www.hnzwfw.gov.cn/"]
[14,"自然资源局","建设用地规划许可证注销","河南政务服务网","https://www.hnzwfw.gov.cn/"]
[15,"自然资源局","建设工程规划许可证注销","河南政务服务网","https://www.hnzwfw.gov.cn/"]
[{"$f":"ROW()-2","v":16},"自然资源局","企业、公共设施和公益事业乡村建设规划许可证核发","河南政务服务网","https://www.hnzwfw.gov.cn/"]
[17,"自然资源局","建设用地规划许可证延期","河南政务服务网","https://www.hnzwfw.gov.cn/"]
[18,"自然资源局","国有农用地的使用权变更登记","河南政务服务网\n洛阳政务服务网","https://www.hnzwfw.gov.cn/\nhttps://zwfw.ly.gov.cn/"]
[19,"自然资源局","国有建设用地使用权注销登记","河南政务服务网\n洛阳政务服务网","https://www.hnzwfw.gov.cn/\nhttps://zwfw.ly.gov.cn/"]
[20,"自然资源局","抵押权注销登记","河南政务服务网\n洛阳政务服务网","https://www.hnzwfw.gov.cn/\nhttps://zwfw.ly.gov.cn/"]
[21,"自然资源局","森林、林木所有权注销登记","河南政务服务网\n洛阳政务服务网","https://www.hnzwfw.gov.cn/\nhttps://zwfw.ly.gov.cn/"]
[22,"自然资源局","集体土地所有权转移登记","河南政务服务网\n洛阳政务服务网","https://www.hnzwfw.gov.cn/\nhttps://zwfw.ly.gov.cn/"]
[23,"自然资源局","预购商品房抵押预告登记变更","河南政务服务网\n洛阳政务服务网","https://www.hnzwfw.gov.cn/\nhttps://zwfw.ly.gov.cn/"]
[24,"自然资源局","抵押权转移登记","河南政务服务网\n洛阳政务服务网","https://www.hnzwfw.gov.cn/\nhttps://zwfw.ly.gov.cn/"]
[25,"自然资源局","国有建设用地使用权及房屋等建筑物、构筑物所有权转移登记（继承）","河南政务服务网\n洛阳政务服务网","https://www.hnzwfw.gov.cn/\nhttps://zwfw.ly.gov.cn/"]
[26,"自然资源局","宅基地使用权变更登记","河南政务服务网\n洛阳政务服务网","https://www.hnzwfw.gov.cn/\nhttps://zwfw.ly.gov.cn/"]
[27,"自然资源局","集体土地所有权变更登记","河南政务服务网\n洛阳政务服务网","https://www.hnzwfw.gov.cn/\nhttps://zwfw.ly.gov.cn/"]
[28,"自然资源局","国有农用地的使用权变更登记","河南政务服务网\n洛阳政务服务网","https://www.hnzwfw.gov.cn/\nhttps://zwfw.ly.gov.cn/"]
[29,"自然资源局","地役权转移登记","河南政务服务网\n洛阳政务服务网","https://www.hnzwfw.gov.cn/\nhttps://zwfw.ly.gov.cn/"]
[30,"自然资源局","异议注销登记","河南政务服务网\n洛阳政务服务网","https://www.hnzwfw.gov.cn/\nhttps://zwfw.ly.gov.cn/"]
[31,"自然资源局","在建建筑物抵押权变更登记","河南政务服务网\n洛阳政务服务网","https://www.hnzwfw.gov.cn/\nhttps://zwfw.ly.gov.cn/"]
[32,"自然资源局","国有建设用地使用权注销登记","河南政务服务网\n洛阳政务服务网","https://www.hnzwfw.gov.cn/\nhttps://zwfw.ly.gov.cn/"]
[33,"自然资源局","国有建设用地使用权及房屋等建筑物、构筑物所有权变更登记（用途变更）","河南政务服务网\n洛阳政务服务网","https://www.hnzwfw.gov.cn/\nhttps://zwfw.ly.gov.cn/"]
[34,"自然资源局","国有建设用地使用权及房屋等建筑物、构筑物所有权转移登记（新建商品房买卖，含经济适用房）","河南政务服务网\n洛阳政务服务网","https://www.hnzwfw.gov.cn/\nhttps://zwfw.ly.gov.cn/"]
[35,"自然资源局","集体建设用地使用权及房屋等建筑物、构筑物所有权转移登记","河南政务服务网\n洛阳政务服务网","https://www.hnzwfw.gov.cn/\nhttps://zwfw.ly.gov.cn/"]
[36,"自然资源局","国有建设用地使用权及房屋等建筑物、构筑物所有权转移登记（房改购房）","河南政务服务网\n洛阳政务服务网","https://www.hnzwfw.gov.cn/\nhttps://zwfw.ly.gov.cn/"]
[37,"自然资源局","国有建设用地使用权首次登记（出让）","河南政务服务网\n洛阳政务服务网","https://www.hnzwfw.gov.cn/\nhttps://zwfw.ly.gov.cn/"]
[38,"自然资源局","地役权注销登记","河南政务服务网\n洛阳政务服务网","https://www.hnzwfw.gov.cn/\nhttps://zwfw.ly.gov.cn/"]
[39,"自然资源局","国有建设用地使用权转移登记（合并、分立、资产调拨）","河南政务服务网\n洛阳政务服务网","https://www.hnzwfw.gov.cn/\nhttps://zwfw.ly.gov.cn/"]
[40,"自然资源局","预购商品房预告登记注销","河南政务服务网\n洛阳政务服务网","https://www.hnzwfw.gov.cn/\nhttps://zwfw.ly.gov.cn/"]
[41,"自然资源局","国有建设用地使用权及房屋等建筑物、构筑物所有权转移登记（安置房）","河南政务服务网\n洛阳政务服务网","https://www.hnzwfw.gov.cn/\nhttps://zwfw.ly.gov.cn/"]
[42,"自然资源局","国有建设用地使用权转移登记（继承）","河南政务服务网\n洛阳政务服务网","https://www.hnzwfw.gov.cn/\nhttps://zwfw.ly.gov.cn/"]
[43,"自然资源局","国有建设用地使用权转移登记（买卖）","河南政务服务网\n洛阳政务服务网","https://www.hnzwfw.gov.cn/\nhttps://zwfw.ly.gov.cn/"]
[44,"自然资源局","国有建设用地使用权变更登记（权利人名称变更）","河南政务服务网\n洛阳政务服务网","https://www.hnzwfw.gov.cn/\nhttps://zwfw.ly.gov.cn/"]
[45,"自然资源局","不动产补证","河南政务服务网\n洛阳政务服务网","https://www.hnzwfw.gov.cn/\nhttps://zwfw.ly.gov.cn/"]
[46,"自然资源局","不动产查询","河南政务服务网\n洛阳政务服务网","https://www.hnzwfw.gov.cn/\nhttps://zwfw.ly.gov.cn/"]
[47,"自然资源局","国有建设用地使用权及房屋等建筑物、构筑物所有权变更登记（分割合并）","河南政务服务网\n洛阳政务服务网","https://www.hnzwfw.gov.cn/\nhttps://zwfw.ly.gov.cn/"]
[48,"自然资源局","国有建设用地使用权变更登记（土地用途变更）","河南政务服务网\n洛阳政务服务网","https://www.hnzwfw.gov.cn/\nhttps://zwfw.ly.gov.cn/"]
[49,"自然资源局","耕地、林地、草原等土地承包经营权首次登记","河南政务服务网\n洛阳政务服务网","https://www.hnzwfw.gov.cn/\nhttps://zwfw.ly.gov.cn/"]
[50,"自然资源局","宅基地使用权转移登记","河南政务服务网\n洛阳政务服务网","https://www.hnzwfw.gov.cn/\nhttps://zwfw.ly.gov.cn/"]
[51,"自然资源局","国有建设用地使用权及房屋等建筑物、构筑物所有权转移登记（企业改制）","河南政务服务网\n洛阳政务服务网","https://www.hnzwfw.gov.cn/\nhttps://zwfw.ly.gov.cn/"]
[52,"自然资源局","国有建设用地使用权及房屋等建筑物、构筑物所有权转移登记（赠与、受遗赠）","河南政务服务网\n洛阳政务服务网","https://www.hnzwfw.gov.cn/\nhttps://zwfw.ly.gov.cn/"]
[{"$f":"ROW()-2","v":53},"自然资源局","集体建设用地使用权注销登记","河南政务服务网\n洛阳政务服务网","https://www.hnzwfw.gov.cn/\nhttps://zwfw.ly.gov.cn/"]
[54,"自然资源局","国有建设用地使用权首次登记（租赁）","河南政务服务网\n洛阳政务服务网","https://www.hnzwfw.gov.cn/\nhttps://zwfw.ly.gov.cn/"]
[55,"自然资源局","国有建设用地使用权首次登记（作价出资（入股）、授权经营）","河南政务服务网\n洛阳政务服务网","https://www.hnzwfw.gov.cn/\nhttps://zwfw.ly.gov.cn/"]
[56,"自然资源局","预购商品房预告登记设立","河南政务服务网\n洛阳政务服务网","https://www.hnzwfw.gov.cn/\nhttps://zwfw.ly.gov.cn/"]
[57,"自然资源局","国有建设用地使用权及房屋等建筑物、构筑物所有权注销登记","河南政务服务网\n洛阳政务服务网","https://www.hnzwfw.gov.cn/\nhttps://zwfw.ly.gov.cn/"]
[58,"自然资源局","地役权首次登记","河南政务服务网\n洛阳政务服务网","https://www.hnzwfw.gov.cn/\nhttps://zwfw.ly.gov.cn/"]
[59,"自然资源局","异议登记","河南政务服务网\n洛阳政务服务网","https://www.hnzwfw.gov.cn/\nhttps://zwfw.ly.gov.cn/"]
[60,"自然资源局","国有农用地的使用权注销登记","河南政务服务网\n洛阳政务服务网","https://www.hnzwfw.gov.cn/\nhttps://zwfw.ly.gov.cn/"]
[61,"自然资源局","集体建设用地使用权及房屋等建筑物、构筑物所有权变更登记","河南政务服务网\n洛阳政务服务网","https://www.hnzwfw.gov.cn/\nhttps://zwfw.ly.gov.cn/"]
[62,"自然资源局","集体建设用地使用权首次登记","河南政务服务网\n洛阳政务服务网","https://www.hnzwfw.gov.cn/\nhttps://zwfw.ly.gov.cn/"]
[63,"自然资源局","依职权更正登记","河南政务服务网\n洛阳政务服务网","https://www.hnzwfw.gov.cn/\nhttps://zwfw.ly.gov.cn/"]
[64,"自然资源局","国有建设用地使用权及房屋等建筑物、构筑物所有权变更登记（土地权利性质、使用期限变更）","河南政务服务网\n洛阳政务服务网","https://www.hnzwfw.gov.cn/\nhttps://zwfw.ly.gov.cn/"]
[65,"自然资源局","国有建设用地使用权首次登记（政府储备）","河南政务服务网\n洛阳政务服务网","https://www.hnzwfw.gov.cn/\nhttps://zwfw.ly.gov.cn/"]
[66,"自然资源局","国有建设用地使用权及房屋等建筑物、构筑物所有权首次登记","河南政务服务网\n洛阳政务服务网","https://www.hnzwfw.gov.cn/\nhttps://zwfw.ly.gov.cn/"]
[67,"自然资源局","国有建设用地使用权及房屋等建筑物、构筑物所有权转移登记（夫妻财产约定）","河南政务服务网\n洛阳政务服务网","https://www.hnzwfw.gov.cn/\nhttps://zwfw.ly.gov.cn/"]
[68,"自然资源局","集体土地所有权首次登记","河南政务服务网\n洛阳政务服务网","https://www.hnzwfw.gov.cn/\nhttps://zwfw.ly.gov.cn/"]
[69,"自然资源局","不动产抵押预告登记","河南政务服务网\n洛阳政务服务网","https://www.hnzwfw.gov.cn/\nhttps://zwfw.ly.gov.cn/"]
[70,"自然资源局","国有建设用地使用权变更登记（权利性质变更）","河南政务服务网\n洛阳政务服务网","https://www.hnzwfw.gov.cn/\nhttps://zwfw.ly.gov.cn/"]
[71,"自然资源局","国有建设用地使用权及房屋等建筑物、构筑物所有权变更登记（经济适用房取得完全产权）","河南政务服务网\n洛阳政务服务网","https://www.hnzwfw.gov.cn/\nhttps://zwfw.ly.gov.cn/"]
[72,"自然资源局","国有建设用地使用权及房屋等建筑物、构筑物所有权转移登记（依生效法律文书转移）","河南政务服务网\n洛阳政务服务网","https://www.hnzwfw.gov.cn/\nhttps://zwfw.ly.gov.cn/"]
[73,"自然资源局","集体建设用地使用权及房屋等建筑物、构筑物所有权首次登记","河南政务服务网\n洛阳政务服务网","https://www.hnzwfw.gov.cn/\nhttps://zwfw.ly.gov.cn/"]
[74,"自然资源局","注销查封登记","河南政务服务网\n洛阳政务服务网","https://www.hnzwfw.gov.cn/\nhttps://zwfw.ly.gov.cn/"]
[75,"自然资源局","国有建设用地使用权转移登记（生效法律文书权利转移）","河南政务服务网\n洛阳政务服务网","https://www.hnzwfw.gov.cn/\nhttps://zwfw.ly.gov.cn/"]
[76,"自然资源局","耕地、林地、草原等土地承包经营权转移登记","河南政务服务网\n洛阳政务服务网","https://www.hnzwfw.gov.cn/\nhttps://zwfw.ly.gov.cn/"]
[77,"自然资源局","国有建设用地使用权及房屋等建筑物、构筑物所有权变更登记（共同共有转为按份共有）","河南政务服务网\n洛阳政务服务网","https://www.hnzwfw.gov.cn/\nhttps://zwfw.ly.gov.cn/"]
[78,"自然资源局","国有建设用地使用权及房屋等建筑物、构筑物所有权转移登记（作价出资、入股）","河南政务服务网\n洛阳政务服务网","https://www.hnzwfw.gov.cn/\nhttps://zwfw.ly.gov.cn/"]
[79,"自然资源局","集体建设用地使用权转移登记","河南政务服务网\n洛阳政务服务网","https://www.hnzwfw.gov.cn/\nhttps://zwfw.ly.gov.cn/"]
[80,"自然资源局","在建建筑物抵押权转移登记","河南政务服务网\n洛阳政务服务网","https://www.hnzwfw.gov.cn/\nhttps://zwfw.ly.gov.cn/"]
[81,"自然资源局","宅基地使用权及房屋等建筑物、构筑物所有权变更登记","河南政务服务网\n洛阳政务服务网","https://www.hnzwfw.gov.cn/\nhttps://zwfw.ly.gov.cn/"]
[82,"自然资源局","宅基地使用权及房屋等建筑物、构筑物所有权注销登记","河南政务服务网\n洛阳政务服务网","https://www.hnzwfw.gov.cn/\nhttps://zwfw.ly.gov.cn/"]
[83,"自然资源局","国有林地使用权转移登记","河南政务服务网\n洛阳政务服务网","https://www.hnzwfw.gov.cn/\nhttps://zwfw.ly.gov.cn/"]
[84,"自然资源局","查封登记","河南政务服务网\n洛阳政务服务网","https://www.hnzwfw.gov.cn/\nhttps://zwfw.ly.gov.cn/"]
[85,"自然资源局","国有农用地的使用权转移登记","河南政务服务网\n洛阳政务服务网","https://www.hnzwfw.gov.cn/\nhttps://zwfw.ly.gov.cn/"]
[86,"自然资源局","宅基地使用权及房屋等建筑物、构筑物所有权首次登记","河南政务服务网\n洛阳政务服务网","https://www.hnzwfw.gov.cn/\nhttps://zwfw.ly.gov.cn/"]
[87,"自然资源局","集体建设用地使用权变更登记","河南政务服务网\n洛阳政务服务网","https://www.hnzwfw.gov.cn/\nhttps://zwfw.ly.gov.cn/"]
[88,"自然资源局","在建建筑物抵押权首次登记","河南政务服务网\n洛阳政务服务网","https://www.hnzwfw.gov.cn/\nhttps://zwfw.ly.gov.cn/"]
[89,"自然资源局","不动产转移预告登记","河南政务服务网\n洛阳政务服务网","https://www.hnzwfw.gov.cn/\nhttps://zwfw.ly.gov.cn/"]
[90,"自然资源局","国有建设用地使用权及房屋等建筑物、构筑物所有权转移登记（存量房买卖加抵押合并登记）","河南政务服务网\n洛阳政务服务网","https://www.hnzwfw.gov.cn/\nhttps://zwfw.ly.gov.cn/"]
[91,"自然资源局","国有建设用地使用权及房屋等建筑物、构筑物所有权转移登记（存量房买卖）","河南政务服务网\n洛阳政务服务网","https://www.hnzwfw.gov.cn/\nhttps://zwfw.ly.gov.cn/"]
[92,"自然资源局","国有建设用地使用权变更登记（土地界址、面积变化或分割合并）","河南政务服务网\n洛阳政务服务网","https://www.hnzwfw.gov.cn/\nhttps://zwfw.ly.gov.cn/"]
[93,"自然资源局","抵押权首次登记","河南政务服务网\n洛阳政务服务网","https://www.hnzwfw.gov.cn/\nhttps://zwfw.ly.gov.cn/"]
[94,"自然资源局","抵押权变更登记","河南政务服务网\n洛阳政务服务网","https://www.hnzwfw.gov.cn/\nhttps://zwfw.ly.gov.cn/"]
[95,"自然资源局","依申请更正登记","河南政务服务网\n洛阳政务服务网","https://www.hnzwfw.gov.cn/\nhttps://zwfw.ly.gov.cn/"]
[96,"自然资源局","集体土地所有权注销登记","河南政务服务网\n洛阳政务服务网","https://www.hnzwfw.gov.cn/\nhttps://zwfw.ly.gov.cn/"]
[97,"自然资源局","国有建设用地使用权变更登记（坐落变更）","河南政务服务网\n洛阳政务服务网","https://www.hnzwfw.gov.cn/\nhttps://zwfw.ly.gov.cn/"]
[98,"自然资源局","国有建设用地使用权变更登记（证件种类或号码变更）","河南政务服务网\n洛阳政务服务网","https://www.hnzwfw.gov.cn/\nhttps://zwfw.ly.gov.cn/"]
[99,"自然资源局","耕地、林地、草原等土地承包经营权注销登记","河南政务服务网\n洛阳政务服务网","https://www.hnzwfw.gov.cn/\nhttps://zwfw.ly.gov.cn/"]
[100,"自然资源局","国有建设用地使用权转移登记（企业改制）","河南政务服务网\n洛阳政务服务网","https://www.hnzwfw.gov.cn/\nhttps://zwfw.ly.gov.cn/"]
[101,"自然资源局","国有建设用地使用权及房屋等建筑物、构筑物所有权转移登记（互换）","河南政务服务网\n洛阳政务服务网","https://www.hnzwfw.gov.cn/\nhttps://zwfw.ly.gov.cn/"]
[102,"自然资源局","宅基地使用权首次登记","河南政务服务网\n洛阳政务服务网","https://www.hnzwfw.gov.cn/\nhttps://zwfw.ly.gov.cn/"]
[103,"自然资源局","宅基地使用权及房屋等建筑物、构筑物所有权转移登记","河南政务服务网\n洛阳政务服务网","https://www.hnzwfw.gov.cn/\nhttps://zwfw.ly.gov.cn/"]
[104,"自然资源局","国有建设用地使用权首次登记（划拨）","河南政务服务网\n洛阳政务服务网","https://www.hnzwfw.gov.cn/\nhttps://zwfw.ly.gov.cn/"]
[105,"自然资源局","森林、林木所有权转移登记","河南政务服务网\n洛阳政务服务网","https://www.hnzwfw.gov.cn/\nhttps://zwfw.ly.gov.cn/"]
[106,"自然资源局","国有建设用地使用权变更登记（共同共有转为按份共有）","河南政务服务网\n洛阳政务服务网","https://www.hnzwfw.gov.cn/\nhttps://zwfw.ly.gov.cn/"]
[107,"自然资源局","集体建设用地使用权及房屋等建筑物、构筑物所有权注销登记","河南政务服务网\n洛阳政务服务网","https://www.hnzwfw.gov.cn/\nhttps://zwfw.ly.gov.cn/"]
[108,"自然资源局","国有林地使用权变更登记","河南政务服务网\n洛阳政务服务网","https://www.hnzwfw.gov.cn/\nhttps://zwfw.ly.gov.cn/"]
[109,"自然资源局","国有农用地的使用权首次登记","河南政务服务网\n洛阳政务服务网","https://www.hnzwfw.gov.cn/\nhttps://zwfw.ly.gov.cn/"]
[110,"自然资源局","森林、林木所有权首次登记","河南政务服务网\n洛阳政务服务网","https://www.hnzwfw.gov.cn/\nhttps://zwfw.ly.gov.cn/"]
[111,"自然资源局","预购商品房预告登记变更","河南政务服务网\n洛阳政务服务网","https://www.hnzwfw.gov.cn/\nhttps://zwfw.ly.gov.cn/"]
[112,"自然资源局","森林、林木所有权变更登记","河南政务服务网\n洛阳政务服务网","https://www.hnzwfw.gov.cn/\nhttps://zwfw.ly.gov.cn/"]
[113,"自然资源局","国有建设用地使用权及房屋等建筑物、构筑物所有权转移登记（资产调拨）","河南政务服务网\n洛阳政务服务网","https://www.hnzwfw.gov.cn/\nhttps://zwfw.ly.gov.cn/"]
[114,"自然资源局","宅基地使用权注销登记","河南政务服务网\n洛阳政务服务网","https://www.hnzwfw.gov.cn/\nhttps://zwfw.ly.gov.cn/"]
[115,"自然资源局","预购商品房抵押预告登记注销","河南政务服务网\n洛阳政务服务网","https://www.hnzwfw.gov.cn/\nhttps://zwfw.ly.gov.cn/"]
[116,"自然资源局","预购商品房抵押预告登记设立","河南政务服务网\n洛阳政务服务网","https://www.hnzwfw.gov.cn/\nhttps://zwfw.ly.gov.cn/"]
[{"$f":"ROW()-2","v":117},"自然资源局","国有林地使用权首次登记","河南政务服务网\n洛阳政务服务网","https://www.hnzwfw.gov.cn/\nhttps://zwfw.ly.gov.cn/"]
[118,"自然资源局","国有建设用地使用权及房屋等建筑物、构筑物所有权变更登记（权利人名称、坐落、证件种类或号码变更）","河南政务服务网\n洛阳政务服务网","https://www.hnzwfw.gov.cn/\nhttps://zwfw.ly.gov.cn/"]
[119,"自然资源局","国有建设用地使用权及房屋等建筑物、构筑物所有权转移登记（离婚析产）","河南政务服务网\n洛阳政务服务网","https://www.hnzwfw.gov.cn/\nhttps://zwfw.ly.gov.cn/"]
[120,"自然资源局","地役权变更登记","河南政务服务网\n洛阳政务服务网","https://www.hnzwfw.gov.cn/\nhttps://zwfw.ly.gov.cn/"]
[121,"自然资源局","耕地、林地、草原等土地承包经营权变更登记","河南政务服务网\n洛阳政务服务网","https://www.hnzwfw.gov.cn/\nhttps://zwfw.ly.gov.cn/"]
[122,"自然资源局","国有林地使用权注销登记","河南政务服务网\n洛阳政务服务网","https://www.hnzwfw.gov.cn/\nhttps://zwfw.ly.gov.cn/"]
[123,"自然资源局","不动产换证","河南政务服务网\n洛阳政务服务网","https://www.hnzwfw.gov.cn/\nhttps://zwfw.ly.gov.cn/"]
[124,"自然资源局","国有建设用地使用权及房屋等建筑物、构筑物所有权转移登记（兼并、合并、分立）","河南政务服务网\n洛阳政务服务网","https://www.hnzwfw.gov.cn/\nhttps://zwfw.ly.gov.cn/"]
[125,"住房和城乡建设局","城镇燃气经营许可","河南政务服务网","https://www.hnzwfw.gov.cn/"]
[126,"住房和城乡建设局","城镇燃气设施改动许可","河南政务服务网","https://www.hnzwfw.gov.cn/"]
[127,"住房和城乡建设局","燃气设施工程竣工验收备案","河南政务服务网","https://www.hnzwfw.gov.cn/"]
[128,"住房和城乡建设局","城镇燃气经营许可-到期复查换证","河南政务服务网","https://www.hnzwfw.gov.cn/"]
[129,"住房和城乡建设局","瓶装燃气供应站经营许可","河南政务服务网","https://www.hnzwfw.gov.cn/"]
[130,"住房和城乡建设局","停止供水（气）、改（迁、拆）公共供水的审批","河南政务服务网","https://www.hnzwfw.gov.cn/"]
[131,"住房和城乡建设局","瓶装燃气供应站经营许可-到期复查换证","河南政务服务网","https://www.hnzwfw.gov.cn/"]
[132,"住房和城乡建设局","燃气用户报装","河南政务服务网","https://www.hnzwfw.gov.cn/"]
[133,"住房和城乡建设局","燃气用户信息变更","河南政务服务网","https://www.hnzwfw.gov.cn/"]
[134,"住房和城乡建设局","建筑工程施工许可证变更（工程名称变更）","河南政务服务网","https://www.hnzwfw.gov.cn/"]
[135,"住房和城乡建设局","建筑工程施工许可证变更（勘察单位项目负责人变更）","河南政务服务网","https://www.hnzwfw.gov.cn/"]
[136,"住房和城乡建设局","建筑工程施工许可证变更（建设规模变更）","河南政务服务网","https://www.hnzwfw.gov.cn/"]
[137,"住房和城乡建设局","建筑工程施工许可证变更（设计单位变更）","河南政务服务网","https://www.hnzwfw.gov.cn/"]
[138,"住房和城乡建设局","建筑工程施工许可证变更（勘察单位变更）","河南政务服务网","https://www.hnzwfw.gov.cn/"]
[139,"住房和城乡建设局","建筑工程施工许可证变更（监理单位变更）","河南政务服务网","https://www.hnzwfw.gov.cn/"]
[140,"住房和城乡建设局","建筑工程施工许可证变更（设计单位项目负责人变更）","河南政务服务网","https://www.hnzwfw.gov.cn/"]
[141,"住房和城乡建设局","建筑工程施工许可证变更（监理单位总监理工程师变更）","河南政务服务网","https://www.hnzwfw.gov.cn/"]
[142,"住房和城乡建设局","建筑工程施工许可证变更（建设单位项目负责人变更）","河南政务服务网","https://www.hnzwfw.gov.cn/"]
[143,"住房和城乡建设局","建筑工程施工许可证变更（施工单位项目负责人变更）","河南政务服务网","https://www.hnzwfw.gov.cn/"]
[144,"住房和城乡建设局","城镇污水排入排水管网许可","河南政务服务网","https://www.hnzwfw.gov.cn/"]
[145,"住房和城乡建设局","城镇污水排入排水管网许可-到期复查换证","河南政务服务网","https://www.hnzwfw.gov.cn/"]
[146,"政府办","城市单建地下工程兼顾人民防空需要易地建设审查（变更）","河南政务服务网","https://www.hnzwfw.gov.cn/"]
[147,"政府办","公用人民防空工程平时开发利用审批","河南政务服务网","https://www.hnzwfw.gov.cn/"]
[148,"政府办","人民防空工程报废审批","河南政务服务网","https://www.hnzwfw.gov.cn/"]
[149,"政府办","城市单建地下工程兼顾人民防空需要同步建设审查（变更）","河南政务服务网","https://www.hnzwfw.gov.cn/"]
[150,"政府办","单独修建的人民防空工程项目建议书审批变更（政府投资项目）","河南政务服务网","https://www.hnzwfw.gov.cn/"]
[151,"政府办","新建民用建筑防空地下室易地建设审批（建在流砂、暗河、基岩埋深很浅等地段的项目，因地质条件不适于修建的）","河南政务服务网","https://www.hnzwfw.gov.cn/"]
[152,"政府办","单独修建的人民防空工程项目可行性研究报告审批变更（政府投资项目）","河南政务服务网","https://www.hnzwfw.gov.cn/"]
[153,"政府办","城市单建地下工程兼顾人民防空需要同步建设审查","河南政务服务网","https://www.hnzwfw.gov.cn/"]
[154,"政府办","人民防空工程施工质量检查（顶板钢筋及管道、预埋件隐蔽前）","河南政务服务网","https://www.hnzwfw.gov.cn/"]
[155,"政府办","单独修建的人民防空工程项目可行性研究报告审批（政府投资项目）","河南政务服务网","https://www.hnzwfw.gov.cn/"]
[156,"政府办","非公用人民防空工程平时开发利用登记手续办理变更（法定代表人变更）","河南政务服务网","https://www.hnzwfw.gov.cn/"]
[157,"政府办","单独修建的人民防空工程项目建议书审批（政府投资项目）","河南政务服务网","https://www.hnzwfw.gov.cn/"]
[158,"政府办","防空地下室质量监督手续办理（可以与施工许可证合并办理）","河南政务服务网","https://www.hnzwfw.gov.cn/"]
[159,"政府办","新建民用建筑防空地下室易地建设审批（所在地块被禁止、限制开发利用地下空间的）","河南政务服务网","https://www.hnzwfw.gov.cn/"]
[160,"政府办","人民防空工程拆除补建审批","河南政务服务网","https://www.hnzwfw.gov.cn/"]
[161,"政府办","城市单建地下工程兼顾人民防空需要易地建设审查","河南政务服务网","https://www.hnzwfw.gov.cn/"]
[162,"政府办","人民防空工程施工质量检查（底板钢筋及管道、预埋件隐蔽前）","河南政务服务网","https://www.hnzwfw.gov.cn/"]
[163,"政府办","城市地下交通干线及其他地下工程兼顾人民防空需要工程质量监督手续办理（可以与施工许可证合并办理）","河南政务服务网","https://www.hnzwfw.gov.cn/"]
[164,"政府办","单独修建的人民防空工程项目初步设计文件审批变更（政府投资项目）","河南政务服务网","https://www.hnzwfw.gov.cn/"]
[165,"政府办","单独修建的人民防空工程竣工验收备案","河南政务服务网","https://www.hnzwfw.gov.cn/"]
[166,"政府办","单独修建的人民防空工程项目初步设计文件审批（政府投资项目）","河南政务服务网","https://www.hnzwfw.gov.cn/"]
[167,"政府办","人民防空警报设施拆除审批","河南政务服务网","https://www.hnzwfw.gov.cn/"]
[168,"政府办","人民防空工程拆除补偿审批","河南政务服务网","https://www.hnzwfw.gov.cn/"]
[169,"政府办","非公用人民防空工程平时开发利用登记手续办理","河南政务服务网","https://www.hnzwfw.gov.cn/"]
[170,"政府办","人民防空工程施工质量检查（墙体钢筋及管道、预埋件隐蔽前）","河南政务服务网","https://www.hnzwfw.gov.cn/"]
[171,"政府办","新建民用建筑防空地下室易地建设审批（按照规定标准应建防空地下室面积小于1000平方米（除医疗救护、防空专业队队员掩蔽部工程外），且建设单位提出缴纳防空地下室易地建设费申请的）","河南政务服务网","https://www.hnzwfw.gov.cn/"]
[172,"政府办","人民防空工程施工质量检查（主体结构验收）","河南政务服务网","https://www.hnzwfw.gov.cn/"]
[173,"政府办","人民防空工程施工质量检查（地基验槽）","河南政务服务网","https://www.hnzwfw.gov.cn/"]
[174,"政府办","新建民用建筑防空地下室同步建设审批","河南政务服务网","https://www.hnzwfw.gov.cn/"]
[175,"政府办","新建民用建筑防空地下室易地建设审批（变更）","河南政务服务网","https://www.hnzwfw.gov.cn/"]
[176,"政府办","城市地下综合管廊工程兼顾人民防空需要审查","河南政务服务网","https://www.hnzwfw.gov.cn/"]
[177,"政府办","新建民用建筑防空地下室易地建设审批（建设地段房屋或者地下管道设施密集，防空地下室不能施工或者难以采取措施保证施工安全的）","河南政务服务网","https://www.hnzwfw.gov.cn/"]
[178,"政府办","新建民用建筑防空地下室同步建设审批（变更）","河南政务服务网","https://www.hnzwfw.gov.cn/"]
[179,"政府办","人民防空工程改造审批","河南政务服务网","https://www.hnzwfw.gov.cn/"]
[180,"政府办","人民防空警报设施迁移审批","河南政务服务网","https://www.hnzwfw.gov.cn/"]
[{"$f":"ROW()-2","v":181},"政府办","城市地下交通干线兼顾人民防空需要审查","河南政务服务网","https://www.hnzwfw.gov.cn/"]
[182,"政府办","单独修建的人民防空工程项目开工报告审批","河南政务服务网","https://www.hnzwfw.gov.cn/"]
[183,"政府办","人民防空工程施工质量检查（单独修建的人民防空工程竣工验收）","河南政务服务网","https://www.hnzwfw.gov.cn/"]
[184,"政府办","人防工程竣工验收核实","河南政务服务网","https://www.hnzwfw.gov.cn/"]
[185,"政府办","非公用人民防空工程平时开发利用登记手续办理变更（使用维护管理单位名称变更）","河南政务服务网","https://www.hnzwfw.gov.cn/"]
[186,"政府办","融资担保机构设立（初审）","河南政务服务网","https://www.hnzwfw.gov.cn/"]
[187,"政府办","融资担保机构合并（初审）","河南政务服务网","https://www.hnzwfw.gov.cn/"]
[188,"政府办","融资担保机构分立（初审）","河南政务服务网","https://www.hnzwfw.gov.cn/"]
[189,"政府办","融资担保机构减少注册资本（初审）","河南政务服务网","https://www.hnzwfw.gov.cn/"]
[190,"政府办","注销《融资性担保机构经营许可证》（初审）","河南政务服务网","https://www.hnzwfw.gov.cn/"]
[191,"政府办","融资担保机构变更名称备案（初审）","河南政务服务网","https://www.hnzwfw.gov.cn/"]
[192,"政府办","融资担保机构变更持有5%以上股权的股东备案（初审）","河南政务服务网","https://www.hnzwfw.gov.cn/"]
[193,"政府办","融资担保机构变更董事、监事、高级管理人员备案（初审）","河南政务服务网","https://www.hnzwfw.gov.cn/"]
[194,"政府办","小额贷款公司设立（初审）","河南政务服务网","https://www.hnzwfw.gov.cn/"]
[195,"政府办","小额贷款公司变更公司组织形式（初审）","河南政务服务网","https://www.hnzwfw.gov.cn/"]
[196,"政府办","小额贷款公司增加注册资本（初审）","河南政务服务网","https://www.hnzwfw.gov.cn/"]
[197,"政府办","小额贷款公司变更股权结构（涉及第一大股东或其他一致行动人股东合计持股变更比例高于第一大股东现有股份）（初审）","河南政务服务网","https://www.hnzwfw.gov.cn/"]
[198,"政府办","小额贷款公司变更业务经营范围（初审）","河南政务服务网","https://www.hnzwfw.gov.cn/"]
[199,"政府办","小额贷款公司跨县（市、区）行政区域变更公司住所（初审）","河南政务服务网","https://www.hnzwfw.gov.cn/"]
[200,"政府办","小额贷款公司变更公司法人、董事长、执行董事、总经理（初审）","河南政务服务网","https://www.hnzwfw.gov.cn/"]
[201,"政府办","小额贷款公司修改公司章程（初审）","河南政务服务网","https://www.hnzwfw.gov.cn/"]
[202,"政府办","小额贷款公司变更公司名称（公司组织形式变更除外）（初审）","河南政务服务网","https://www.hnzwfw.gov.cn/"]
[203,"政府办","小额贷款公司变更股权结构（不涉及第一大股东且变更比例低于第一大股东现有股份）（初审）","河南政务服务网","https://www.hnzwfw.gov.cn/"]
[204,"政府办","小额贷款公司变更董事、监事、高级管理人员（公司法定代表人、董事长、执行董事、总经理除外）（初审）","河南政务服务网","https://www.hnzwfw.gov.cn/"]
[205,"政府办","小额贷款公司变更公司住所（非同一县〔市、区〕行政区域除外）（初审）","河南政务服务网","https://www.hnzwfw.gov.cn/"]
[206,"政府办","取消小额贷款公司试点资格（初审）","河南政务服务网","https://www.hnzwfw.gov.cn/"]
[207,"政府办","小额贷款公司减少注册资本（初审）","河南政务服务网","https://www.hnzwfw.gov.cn/"]
[208,"烟草专卖局","烟草专卖零售许可证变更办理（法定代表人或其他组织负责人发生变化）","微信小程序/烟草政务服务平台","豫剑云曦/https://zwfwdt.tobacco.gov.cn/cooperativeWeb/event/tab"]
[209,"烟草专卖局","烟草专卖零售许可证变更办理（变更许可范围）","微信小程序/烟草政务服务平台","豫剑云曦/https://zwfwdt.tobacco.gov.cn/cooperativeWeb/event/tab"]
[210,"烟草专卖局","烟草专卖零售许可证停业办理","微信小程序/烟草政务服务平台","豫剑云曦/https://zwfwdt.tobacco.gov.cn/cooperativeWeb/event/tab"]
[211,"烟草专卖局","烟草专卖零售许可证歇业办理","微信小程序/烟草政务服务平台","豫剑云曦/https://zwfwdt.tobacco.gov.cn/cooperativeWeb/event/tab"]
[212,"烟草专卖局","烟草专卖零售许可证补办办理","微信小程序/烟草政务服务平台","豫剑云曦/https://zwfwdt.tobacco.gov.cn/cooperativeWeb/event/tab"]
[213,"烟草专卖局","烟草专卖零售许可证变更办理（企业名称、个体工商户名称发生改变）","微信小程序/烟草政务服务平台","豫剑云曦/https://zwfwdt.tobacco.gov.cn/cooperativeWeb/event/tab"]
[214,"烟草专卖局","烟草专卖零售许可证延续办理","微信小程序/烟草政务服务平台","豫剑云曦/https://zwfwdt.tobacco.gov.cn/cooperativeWeb/event/tab"]
[215,"烟草专卖局","烟草专卖零售许可证变更办理（因道路规划、城市建设等客观原因造成的经营地址变化）","微信小程序/烟草政务服务平台","豫剑云曦/https://zwfwdt.tobacco.gov.cn/cooperativeWeb/event/tab"]
[216,"烟草专卖局","烟草专卖零售许可证变更办理（家庭经营的个体工商户，持证人在家庭成员间变化）","微信小程序/烟草政务服务平台","豫剑云曦/https://zwfwdt.tobacco.gov.cn/cooperativeWeb/event/tab"]
[217,"烟草专卖局","烟草专卖零售许可证恢复营业办理","微信小程序/烟草政务服务平台","豫剑云曦/https://zwfwdt.tobacco.gov.cn/cooperativeWeb/event/tab"]
[218,"烟草专卖局","烟草专卖零售许可证新办办理","微信小程序/烟草政务服务平台","豫剑云曦/https://zwfwdt.tobacco.gov.cn/cooperativeWeb/event/detail?catalogCode=000162004000&rowGuid=a33c0920-c39c-d3e0-e050-007f0100387f"]
[219,"烟草专卖局","烟草专卖零售许可证变更办理（经营地址名称变化）","微信小程序/烟草政务服务平台","豫剑云曦/https://zwfwdt.tobacco.gov.cn/cooperativeWeb/event/tab"]
[220,"消防救援大队","公众聚集场所投入使用、营业前消防安全检查（不采用告知承诺制）","河南政务服务网","https://www.hnzwfw.gov.cn/"]
[221,"消防救援大队","公众聚集场所投入使用、营业前消防安全检查（采用告知承诺制）","河南政务服务网","https://www.hnzwfw.gov.cn/"]
[222,"文化广电和旅游局","对在艺术档案工作中做出显著成绩的单位和个人的表彰和奖励","河南政务服务网","https://www.hnzwfw.gov.cn/"]
[223,"文化广电和旅游局","对营业性演出举报人的奖励","河南政务服务网","https://www.hnzwfw.gov.cn/"]
[224,"文化广电和旅游局","文化志愿者备案","河南政务服务网","https://www.hnzwfw.gov.cn/"]
[225,"文化广电和旅游局","对作出突出贡献的营业性演出社会义务监督员的表彰","河南政务服务网","https://www.hnzwfw.gov.cn/"]
[226,"市场监管管理局","药品、医疗器械互联网信息服务备案","河南政务服务网","https://www.hnzwfw.gov.cn/"]
[227,"市场监管管理局","药品、医疗器械互联网信息服务备案变更","河南政务服务网","https://www.hnzwfw.gov.cn/"]
[228,"市场监管管理局","药品、医疗器械互联网信息服务备案取消","河南政务服务网","https://www.hnzwfw.gov.cn/"]
[229,"市场监管管理局","药品经营许可证（零售）核发","河南政务服务网","https://www.hnzwfw.gov.cn/"]
[230,"市场监管管理局","药品经营许可证（零售）经营范围变更","河南政务服务网","https://www.hnzwfw.gov.cn/"]
[231,"市场监管管理局","药品经营许可证（零售）企业名称变更","河南政务服务网","https://www.hnzwfw.gov.cn/"]
[232,"市场监管管理局","药品经营许可证（零售）质量负责人变更","河南政务服务网","https://www.hnzwfw.gov.cn/"]
[233,"市场监管管理局","药品经营许可证（零售）企业负责人变更","河南政务服务网","https://www.hnzwfw.gov.cn/"]
[234,"市场监管管理局","药品经营许可证（零售）注册地址变更","河南政务服务网","https://www.hnzwfw.gov.cn/"]
[235,"市场监管管理局","药品经营许可证（零售）法定代表人变更","河南政务服务网","https://www.hnzwfw.gov.cn/"]
[236,"市场监管管理局","药品经营许可证（零售）换发","河南政务服务网","https://www.hnzwfw.gov.cn/"]
[237,"市场监管管理局","药品经营许可证（零售）补发","河南政务服务网","https://www.hnzwfw.gov.cn/"]
[238,"市场监管管理局","药品经营许可证（零售）注销","河南政务服务网","https://www.hnzwfw.gov.cn/"]
[239,"市场监管管理局","公司设立登记","河南政务服务网","https://www.hnzwfw.gov.cn/"]
[240,"市场监管管理局","分公司、非法人分支机构、营业单位设立登记","河南政务服务网","https://www.hnzwfw.gov.cn/"]
[241,"市场监管管理局","非公司企业法人开业登记","河南政务服务网","https://www.hnzwfw.gov.cn/"]
[242,"市场监管管理局","合伙企业设立登记","河南政务服务网","https://www.hnzwfw.gov.cn/"]
[243,"市场监管管理局","公司变更（备案）登记","河南政务服务网","https://www.hnzwfw.gov.cn/"]
[244,"市场监管管理局","分公司、非法人分支机构、营业单位变更（备案）登记","河南政务服务网","https://www.hnzwfw.gov.cn/"]
[{"$f":"ROW()-2","v":245},"市场监管管理局","非公司企业法人变更（备案）登记","河南政务服务网","https://www.hnzwfw.gov.cn/"]
[246,"市场监管管理局","合伙企业变更（备案）登记","河南政务服务网","https://www.hnzwfw.gov.cn/"]
[247,"市场监管管理局","分公司、非法人分支机构、营业单位注销登记","河南政务服务网","https://www.hnzwfw.gov.cn/"]
[248,"市场监管管理局","企业注销登记","河南政务服务网","https://www.hnzwfw.gov.cn/"]
[249,"市场监管管理局","股权出质设立登记","河南政务服务网","https://www.hnzwfw.gov.cn/"]
[250,"市场监管管理局","股权出质变更登记","河南政务服务网","https://www.hnzwfw.gov.cn/"]
[251,"市场监管管理局","股权出质注销/撤销登记","河南政务服务网","https://www.hnzwfw.gov.cn/"]
[252,"市场监管管理局","专项计量授权新建申请","河南政务服务网","https://www.hnzwfw.gov.cn/"]
[253,"市场监管管理局","专项计量授权复查申请","河南政务服务网","https://www.hnzwfw.gov.cn/"]
[254,"市场监管管理局","专项计量授权扩项申请","河南政务服务网","https://www.hnzwfw.gov.cn/"]
[255,"市场监管管理局","专项计量授权变更申请","河南政务服务网","https://www.hnzwfw.gov.cn/"]
[256,"市场监管管理局","食品生产许可新办（市县级）","河南政务服务网","https://www.hnzwfw.gov.cn/"]
[257,"市场监管管理局","食品生产许可变更（市县级）","河南政务服务网","https://www.hnzwfw.gov.cn/"]
[258,"市场监管管理局","食品生产许可延续（市县级）","河南政务服务网","https://www.hnzwfw.gov.cn/"]
[259,"市场监管管理局","食品生产许可注销（市县级）","河南政务服务网","https://www.hnzwfw.gov.cn/"]
[260,"市场监管管理局","仅销售预包装食品备案、变更、注销","河南政务服务网","https://www.hnzwfw.gov.cn/"]
[261,"市场监管管理局","企业迁移调档","河南政务服务网","https://www.hnzwfw.gov.cn/"]
[262,"市场监管管理局","特种设备安装、改造、修理书面告知","河南政务服务网","https://www.hnzwfw.gov.cn/"]
[263,"市场监管管理局","特种设备使用登记（初次申请）","河南政务服务网","https://www.hnzwfw.gov.cn/"]
[264,"市场监管管理局","特种设备使用登记（停用）","河南政务服务网","https://www.hnzwfw.gov.cn/"]
[265,"市场监管管理局","特种设备使用登记（启用）","河南政务服务网","https://www.hnzwfw.gov.cn/"]
[266,"市场监管管理局","特种设备使用登记（注销）","河南政务服务网","https://www.hnzwfw.gov.cn/"]
[267,"市场监管管理局","特种设备使用登记（补证）","河南政务服务网","https://www.hnzwfw.gov.cn/"]
[268,"市场监管管理局","特种设备使用登记（更名变更）","河南政务服务网","https://www.hnzwfw.gov.cn/"]
[269,"市场监管管理局","特种设备使用登记（单位变更）","河南政务服务网","https://www.hnzwfw.gov.cn/"]
[270,"市场监管管理局","特种设备使用登记（移装变更）","河南政务服务网","https://www.hnzwfw.gov.cn/"]
[271,"市场监管管理局","特种设备使用登记（改造变更）","河南政务服务网","https://www.hnzwfw.gov.cn/"]
[272,"市场监管管理局","特种设备使用登记（达到设计使用年限变更）","河南政务服务网","https://www.hnzwfw.gov.cn/"]
[{"$f":"ROW()-2","v":273},"公安局","机动车临时通行牌证核发","交管12123APP","https://ha.122.gov.cn/#/app"]
[274,"公安局","遗失补证","交管12123APP","https://ha.122.gov.cn/#/app"]
[275,"公安局","考试预约","交管12123APP","https://ha.122.gov.cn/#/app"]
[276,"公安局","损毁换证","交管12123APP","https://ha.122.gov.cn/#/app"]
[277,"公安局","延期换证","交管12123APP","https://ha.122.gov.cn/#/app"]
[278,"公安局","本地二手车过户预选号牌","交管12123APP","https://ha.122.gov.cn/#/app"]
[279,"公安局","期满换证","交管12123APP","https://ha.122.gov.cn/#/app"]
[280,"公安局","新车注册登记预选号牌","交管12123APP","https://ha.122.gov.cn/#/app"]
[281,"公安局","申领机动车免检合格标志","交管12123APP","https://ha.122.gov.cn/#/app"]
[282,"公安局","机动车检验预约","交管12123APP","https://ha.122.gov.cn/#/app"]
[283,"公安局","取消预约","交管12123APP","https://ha.122.gov.cn/#/app"]
[284,"生态环境局","县级建设项目环境影响评价文件审批（非辐射类且编制报告书的项目）首次申请","河南政务服务网","https://www.hnzwfw.gov.cn/"]
[285,"生态环境局","县级建设项目环境影响评价文件审批（非辐射类且编制报告表的项目）首次申请","河南政务服务网","https://www.hnzwfw.gov.cn/"]
[286,"生态环境局","县级建设项目环境影响评价文件审批（非辐射类且编制报告书的项目）重新审核","河南政务服务网","https://www.hnzwfw.gov.cn/"]
[287,"生态环境局","县级建设项目环境影响评价文件审批（非辐射类且编制报告表的项目）重新审核","河南政务服务网","https://www.hnzwfw.gov.cn/"]
[288,"生态环境局","县级建设项目环境影响评价文件审批（非辐射类且编制报告书的项目）重新报批","河南政务服务网","https://www.hnzwfw.gov.cn/"]
[289,"生态环境局","县级建设项目环境影响评价文件审批（非辐射类且编制报告表的项目）重新报批","河南政务服务网","https://www.hnzwfw.gov.cn/"]
[290,"生态环境局","县级建设项目环境影响评价文件告知承诺审批（报告书项目）","河南政务服务网","https://www.hnzwfw.gov.cn/"]
[291,"生态环境局","县级建设项目环境影响评价文件告知承诺审批（报告表项目）","河南政务服务网","https://www.hnzwfw.gov.cn/"]
[292,"生态环境局","县级建设项目环境影响后评价报告的备案（非辐射类）","河南省投资项目在线审批监管平台网上申报系统","http://tzls.hazw.gov.cn/"]
[293,"生态环境局","建设项目环境影响登记表备案","建设项目环境影响登记表备案系统","https://beian.china-eia.com/"]
[294,"生态环境局","县级排污许可证申请补领","全国排污许可证管理信息平台","https://permit.mee.gov.cn/"]
[295,"生态环境局","县级排污许可证新申请","全国排污许可证管理信息平台","https://permit.mee.gov.cn/"]
[296,"生态环境局","县级排污许可正本变更（法定代表人变更）","全国排污许可证管理信息平台","https://permit.mee.gov.cn/"]
[297,"生态环境局","县级排污许可副本变更","全国排污许可证管理信息平台","https://permit.mee.gov.cn/"]
[298,"生态环境局","县级排污许可证延续","全国排污许可证管理信息平台","https://permit.mee.gov.cn/"]
[299,"生态环境局","县级排污许可正本变更（单位注册地址变更）","全国排污许可证管理信息平台","https://permit.mee.gov.cn/"]
[300,"生态环境局","县级排污许可正本变更（单位名称变更）","全国排污许可证管理信息平台","https://permit.mee.gov.cn/"]
[301,"生态环境局","县级排污许可正本变更（其他正本中载明的基本信息变更）","全国排污许可证管理信息平台","https://permit.mee.gov.cn/"]
[302,"生态环境局","首次申领《危险废物收集经营许可证》","河南政务服务网","https://www.hnzwfw.gov.cn/"]
[303,"生态环境局","现有经营单位重新申领《危险废物收集经营许可证》","河南政务服务网","https://www.hnzwfw.gov.cn/"]
[304,"生态环境局","到期换发《危险废物收集经营许可证》","河南政务服务网","https://www.hnzwfw.gov.cn/"]
[305,"生态环境局","《危险废物收集经营许可证》基础信息变更","河南政务服务网","https://www.hnzwfw.gov.cn/"]
[306,"生态环境局","《危险废物收集经营许可证》注销","河南政务服务网","https://www.hnzwfw.gov.cn/"]
[307,"生态环境局","《危险废物收集经营许可证》经营场所负责人信息变更","河南政务服务网","https://www.hnzwfw.gov.cn/"]
[{"$f":"ROW()-2","v":308},"生态环境局","《危险废物收集经营许可证》遗失补办","河南政务服务网","https://www.hnzwfw.gov.cn/"]
[309,"生态环境局","《危险废物收集经营许可证》企业名称信息变更","河南政务服务网","https://www.hnzwfw.gov.cn/"]
[310,"生态环境局","《危险废物收集经营许可证》企业法定代表人姓名信息变更","河南政务服务网","https://www.hnzwfw.gov.cn/"]
[311,"生态环境局","入河排污口的设置和扩大审核","河南政务服务网","https://www.hnzwfw.gov.cn/"]
[312,"生态环境局","固体废物申报登记确认","河南政务服务网","https://www.hnzwfw.gov.cn/"]
[313,"生态环境局","防治污染设施的拆除或闲置审批","河南政务服务网","https://www.hnzwfw.gov.cn/"]
[314,"城市综合执法局","特殊车辆在城市道路上行驶（包括经过城市桥梁）审批","河南政务服务网","https://www.hnzwfw.gov.cn/"]
[315,"城市综合执法局","对长期从事市容环卫作业成绩显著的单位和个人的表彰奖励","河南政务服务网","https://www.hnzwfw.gov.cn/"]
[316,"城市综合执法局","建筑垃圾排放许可","河南政务服务网","https://www.hnzwfw.gov.cn/"]
[317,"城市综合执法局","关闭、闲置、拆除城市环卫设施许可","河南政务服务网","https://www.hnzwfw.gov.cn/"]
[318,"城市综合执法局","城市生活垃圾经营性清扫、收集、运输服务许可","河南政务服务网","https://www.hnzwfw.gov.cn/"]
[319,"城市综合执法局","改变绿化规划、绿化用地的使用性质审批","河南政务服务网","https://www.hnzwfw.gov.cn/"]
[320,"城市综合执法局","迁移古树名木审批","河南政务服务网","https://www.hnzwfw.gov.cn/"]
[321,"城市综合执法局","对于在城市公厕的规划、建设和管理中取得显著成绩的单位和个人的表彰和奖励","河南政务服务网","https://www.hnzwfw.gov.cn/"]
[322,"城市综合执法局","建筑垃圾消纳利用许可","河南政务服务网","https://www.hnzwfw.gov.cn/"]
[323,"城市综合执法局","城市生活垃圾经营性处理服务许可-到期复查换证","河南政务服务网","https://www.hnzwfw.gov.cn/"]
[324,"城市综合执法局","依附城市道路、桥梁建设各种管线、杆线等设施许可","河南政务服务网","https://www.hnzwfw.gov.cn/"]
[325,"城市综合执法局","建筑垃圾清运许可","河南政务服务网","https://www.hnzwfw.gov.cn/"]
[326,"城市综合执法局","挖掘城市道路许可","河南政务服务网","https://www.hnzwfw.gov.cn/"]
[327,"城市综合执法局","工程建设涉及城市绿地、树木审批","河南政务服务网","https://www.hnzwfw.gov.cn/"]
[328,"城市综合执法局","城市生活垃圾经营性处理服务许可","河南政务服务网","https://www.hnzwfw.gov.cn/"]
[329,"城市综合执法局","在城市道路两侧和公共场地临时堆放物料，搭建临时建筑物、构筑物或者其他设施许可","河南政务服务网","https://www.hnzwfw.gov.cn/"]
[330,"城市综合执法局","临时占用城市道路许可","河南政务服务网","https://www.hnzwfw.gov.cn/"]
[331,"城市综合执法局","设置大型户外广告及在城市建筑物、设施上悬挂、张贴宣传品审批","河南政务服务网","https://www.hnzwfw.gov.cn/"]
[332,"城市综合执法局","城市生活垃圾经营性清扫、收集、运输服务许可-到期复查换证","河南政务服务网","https://www.hnzwfw.gov.cn/"]
[333,"市公积金中心","购买新建住房申请住房公积金贷款","个人网厅","https://www.lyzfgjj.com/login.do"]
[334,"市公积金中心","退休提取住房公积金","1、支付宝 2、公众号 3、个人网厅","1、洛阳公积金 \n2、洛阳市住房公积金管理中心 \n3.https://www.lyzfgjj.com/login.do"]
[335,"市公积金中心","住房公积金单位缴存登记","单位网厅","https://www.lyzfgjj.com/login.do"]
[336,"市公积金中心","住房公积金灵活就业人员缴存登记","个人网厅","https://www.lyzfgjj.com/login.do"]
[337,"市公积金中心","住房公积金提前部分还款","1、公众号 2、个人网厅","1、洛阳市住房公积金管理中心 \n2.https://www.lyzfgjj.com/login.do"]
[338,"市公积金中心","住房公积金补缴","单位网厅","https://www.lyzfgjj.com/login.do"]
[339,"市公积金中心","住房公积金提前结清贷款","1、公众号 2、个人网厅","1、洛阳市住房公积金管理中心 \n2.https://www.lyzfgjj.com/login.do"]
[340,"市公积金中心","租赁自住住房提取住房公积金（本人）","个人网厅","https://www.lyzfgjj.com/login.do"]
[341,"市公积金中心","住房公积金贷款还款账户变更","1、公众号 2、个人网厅","1、洛阳市住房公积金管理中心 \n2.https://www.lyzfgjj.com/login.do"]
[342,"市公积金中心","住房公积金个人账户转移","单位网厅","https://www.lyzfgjj.com/login.do"]
[343,"市公积金中心","住房公积金个人账户设立","单位网厅","https://www.lyzfgjj.com/login.do"]
[344,"市公积金中心","偿还商贷本息提取住房公积金（配偶）","单位网厅","https://www.lyzfgjj.com/login.do"]
[345,"市公积金中心","偿还商贷本息提取住房公积金（本人）","单位网厅","https://www.lyzfgjj.com/login.do"]
[346,"市公积金中心","住房公积金冲还贷签约","个人网厅","https://www.lyzfgjj.com/login.do"]
[347,"市公积金中心","住房公积金汇缴","单位网厅","https://www.lyzfgjj.com/login.do"]
[348,"市公积金中心","与所在单位终止劳动关系未重新就业且封存满半年提取住房公积金","1、支付宝 2、公众号 3、个人网厅","1、洛阳公积金 \n2、洛阳市住房公积金管理中心 \n3.https://www.lyzfgjj.com/login.do"]
[349,"市公积金中心","住房公积金单位缴存登记信息变更","单位网厅","https://www.lyzfgjj.com/login.do"]
[350,"市公积金中心","住房公积金个人账户封存","单位网厅","https://www.lyzfgjj.com/login.do"]
[351,"市公积金中心","住房公积金缴存基数调整","单位网厅","https://www.lyzfgjj.com/login.do"]
[352,"市公积金中心","租赁自住住房提取住房公积金（配偶）","个人网厅","https://www.lyzfgjj.com/login.do"]
[353,"市公积金中心","住房公积金个人账户启封","单位网厅","https://www.lyzfgjj.com/login.do"]
[354,"市公积金中心","住房公积金贷款缩短还款期限","1、公众号 2、个人网厅","1、洛阳市住房公积金管理中心 \n2.https://www.lyzfgjj.com/login.do"]
[355,"市公积金中心","购买二手住房申请住房公积金贷款","个人网厅","https://www.lyzfgjj.com/login.do"]
[356,"卫生健康委员会","对在血吸虫病防治工作中做出显著成绩的单位和个人给予表彰或者奖励","河南政务服务网","https://www.hnzwfw.gov.cn/"]
[357,"卫生健康委员会","对在传染病防治工作中做出显著成绩和贡献的单位和个人给予表彰和奖励","河南政务服务网","https://www.hnzwfw.gov.cn/"]
[358,"卫生健康委员会","血吸虫病病人医疗费减免","河南政务服务网","https://www.hnzwfw.gov.cn/"]
[359,"卫生健康委员会","“两非”案件举报奖励","河南政务服务网","https://www.hnzwfw.gov.cn/"]
[360,"卫生健康委员会","对在突发事件应急处理、突发公共卫生事件与传染病疫情监测信息报告管理工作中做出贡献的人员给予表彰和奖励","河南政务服务网","https://www.hnzwfw.gov.cn/"]
[361,"发展和改革委员会","不跨县（市）的独立选址的高速公路附属设施（含独立选址的高速公路互通式立交、连接线、服务区、收费站）项目审批（核准）","河南省投资项目在线审批监管平台网上申报系统","http://tzls.hazw.gov.cn/"]
[362,"发展和改革委员会","非跨县（市）的普通省道网项目（按照规划）核准","河南省投资项目在线审批监管平台网上申报系统","http://tzls.hazw.gov.cn/"]
[363,"发展和改革委员会","农林生物质热电项目核准","河南省投资项目在线审批监管平台网上申报系统","http://tzls.hazw.gov.cn/"]
[364,"发展和改革委员会","教育项目核准","河南省投资项目在线审批监管平台网上申报系统","http://tzls.hazw.gov.cn/"]
[365,"发展和改革委员会","体育项目核准","河南省投资项目在线审批监管平台网上申报系统","http://tzls.hazw.gov.cn/"]
[366,"发展和改革委员会","民政、残疾人项目核准","河南省投资项目在线审批监管平台网上申报系统","http://tzls.hazw.gov.cn/"]
[367,"发展和改革委员会","除跨省辖市、省直管县（市）河流水资源配置调整的项目之外的水利工程项目核准","河南省投资项目在线审批监管平台网上申报系统","http://tzls.hazw.gov.cn/"]
[368,"发展和改革委员会","养老服务设施项目核准","河南省投资项目在线审批监管平台网上申报系统","http://tzls.hazw.gov.cn/"]
[369,"发展和改革委员会","固定资产投资项目节能审查","河南省投资项目在线审批监管平台网上申报系统","http://tzls.hazw.gov.cn/"]
[370,"发展和改革委员会","非跨县（市）的独立公铁桥隧项目核准","河南省投资项目在线审批监管平台网上申报系统","http://tzls.hazw.gov.cn/"]
[371,"发展和改革委员会","除抽凝式燃煤热电、燃气热电、背压式燃煤热电、农林生物质热电以外的其余热电项目（含自备电站）核准","河南省投资项目在线审批监管平台网上申报系统","http://tzls.hazw.gov.cn/"]
[{"$f":"ROW()-2","v":372},"发展和改革委员会","医疗卫生项目核准","河南省投资项目在线审批监管平台网上申报系统","http://tzls.hazw.gov.cn/"]
[373,"发展和改革委员会","除跨省（区、市）高等级航道的千吨级及以上航电枢纽，集装箱专用码头项目，煤炭、矿石、油气专用泊位项目之外的非跨县（市）内河航运项目核准","河南省投资项目在线审批监管平台网上申报系统","http://tzls.hazw.gov.cn/"]
[374,"发展和改革委员会","文化项目核准","河南省投资项目在线审批监管平台网上申报系统","http://tzls.hazw.gov.cn/"]
[375,"发展和改革委员会","燃气热电、背压式燃煤热电（含自备电站）项目核准","河南省投资项目在线审批监管平台网上申报系统","http://tzls.hazw.gov.cn/"]
[376,"发展和改革委员会","分散并网风电项目核准","河南省投资项目在线审批监管平台网上申报系统","http://tzls.hazw.gov.cn/"]
[377,"发展和改革委员会","就业服务设施项目核准","河南省投资项目在线审批监管平台网上申报系统","http://tzls.hazw.gov.cn/"]
[378,"发展和改革委员会","集中并网风电项目核准","河南省投资项目在线审批监管平台网上申报系统","http://tzls.hazw.gov.cn/"]
[379,"发展和改革委员会","除国家高速公路网、普通国道网、地方高速公路和普通省道网项目之外的公路项目核准","河南省投资项目在线审批监管平台网上申报系统","http://tzls.hazw.gov.cn/"]
[380,"发展和改革委员会","广电新闻出版项目核准","河南省投资项目在线审批监管平台网上申报系统","http://tzls.hazw.gov.cn/"]
[381,"发展和改革委员会","社会保障服务设施项目核准","河南省投资项目在线审批监管平台网上申报系统","http://tzls.hazw.gov.cn/"]
[382,"发展和改革委员会","除在跨省（区、市）河流上建设的单站总装机容量50万千瓦及以上项目之外的水电站项目核准","河南省投资项目在线审批监管平台网上申报系统","http://tzls.hazw.gov.cn/"]
[383,"发展和改革委员会","非跨县（市）110千伏及以下和产业集聚区局域电网220千伏电网项目核准","河南省投资项目在线审批监管平台网上申报系统","http://tzls.hazw.gov.cn/"]
[384,"发展和改革委员会","企业投资项目备案","河南省投资项目在线审批监管平台网上申报系统","http://tzls.hazw.gov.cn/"]
[385,"交通运输局","申请道路普通货物运输驾驶员资格证","河南政务服务网","https://www.hnzwfw.gov.cn/"]
[386,"交通运输局","客运车辆道路运输证补、换发","河南政务服务网","https://www.hnzwfw.gov.cn/"]
[387,"交通运输局","因修建铁路建设工程需要占用、挖掘普通公路审批","河南政务服务网","https://www.hnzwfw.gov.cn/"]
[388,"交通运输局","道路普通货物货运代理（代办）备案","河南政务服务网","https://www.hnzwfw.gov.cn/"]
[389,"交通运输局","因修建供电建设工程需要占用、挖掘普通公路用地审批","河南政务服务网","https://www.hnzwfw.gov.cn/"]
[390,"交通运输局","因修建水利建设工程需要占用、挖掘普通公路用地审批","河南政务服务网","https://www.hnzwfw.gov.cn/"]
[391,"交通运输局","客运车辆转籍、过户、报废","河南政务服务网","https://www.hnzwfw.gov.cn/"]
[392,"交通运输局","道路客运站变更许可事项","河南政务服务网","https://www.hnzwfw.gov.cn/"]
[393,"交通运输局","公路建设项目施工许可","河南政务服务网","https://www.hnzwfw.gov.cn/"]
[394,"交通运输局","客运车辆道路运输证信息变更","河南政务服务网","https://www.hnzwfw.gov.cn/"]
[395,"交通运输局","客运车辆道路运输证年审","河南政务服务网","https://www.hnzwfw.gov.cn/"]
[396,"交通运输局","裁决客运站经营者发车时间安排纠纷","河南政务服务网","https://www.hnzwfw.gov.cn/"]
[397,"交通运输局","因修建通信建设工程需要占用、挖掘普通公路用地审批","河南政务服务网","https://www.hnzwfw.gov.cn/"]
[398,"交通运输局","在普通公路用地范围内设置非公路标志许可","河南政务服务网","https://www.hnzwfw.gov.cn/"]
[399,"交通运输局","公路工程质量监督手续办理","河南政务服务网","https://www.hnzwfw.gov.cn/"]
[400,"交通运输局","普通机动车驾驶员培训变更业户基本信息备案","河南政务服务网","https://www.hnzwfw.gov.cn/"]
[401,"交通运输局","道路普通货物运输驾驶员资格证（补证）","河南政务服务网","https://www.hnzwfw.gov.cn/"]
[402,"交通运输局","因修建水利建设工程需要占用、挖掘普通公路审批","河南政务服务网","https://www.hnzwfw.gov.cn/"]
[403,"交通运输局","在普通公路用地范围内架设电缆设施许可","河南政务服务网","https://www.hnzwfw.gov.cn/"]
[404,"交通运输局","道路客运经营变更许可事项","河南政务服务网","https://www.hnzwfw.gov.cn/"]
[405,"交通运输局","在普通公路用地范围内埋设管道设施许可","河南政务服务网","https://www.hnzwfw.gov.cn/"]
[406,"交通运输局","因修建机场建设工程需要占用、挖掘普通公路用地审批","河南政务服务网","https://www.hnzwfw.gov.cn/"]
[407,"交通运输局","道路客运站终止经营","河南政务服务网","https://www.hnzwfw.gov.cn/"]
[408,"交通运输局","在普通公路增设平面交叉道口审批","河南政务服务网","https://www.hnzwfw.gov.cn/"]
[409,"交通运输局","因修建供电建设工程需要占用、挖掘普通公路审批","河南政务服务网","https://www.hnzwfw.gov.cn/"]
[410,"交通运输局","道路货物运输经营许可（除使用4500千克及以下普通货运车辆从事普通货运经营外）","河南政务服务网","https://www.hnzwfw.gov.cn/"]
[411,"交通运输局","道路普通货物运输驾驶员资格证（换证）","河南政务服务网","https://www.hnzwfw.gov.cn/"]
[412,"交通运输局","道路客运经营变更业户基本信息","河南政务服务网","https://www.hnzwfw.gov.cn/"]
[413,"交通运输局","经营期满延续道路客运班线经营","河南政务服务网","https://www.hnzwfw.gov.cn/"]
[414,"交通运输局","道路运输出租车企业信誉核定","河南政务服务网","https://www.hnzwfw.gov.cn/"]
[415,"交通运输局","普通货物营运车辆道路运输证配发","河南政务服务网","https://www.hnzwfw.gov.cn/"]
[416,"交通运输局","道路普通货物运输企业经营许可变更","河南政务服务网","https://www.hnzwfw.gov.cn/"]
[417,"交通运输局","经营期满延续道路客运包车经营","河南政务服务网","https://www.hnzwfw.gov.cn/"]
[418,"交通运输局","普通货物营运车辆道路运输证换发","河南政务服务网","https://www.hnzwfw.gov.cn/"]
[419,"交通运输局","因修建铁路建设工程需要占用、挖掘普通公路用地审批","河南政务服务网","https://www.hnzwfw.gov.cn/"]
[420,"交通运输局","因修建铁路建设工程需要占用、挖掘普通公路用地审批","河南政务服务网","https://www.hnzwfw.gov.cn/"]
[421,"交通运输局","在普通公路改造平面交叉道口审批","河南政务服务网","https://www.hnzwfw.gov.cn/"]
[422,"交通运输局","跨越普通公路架设电缆设施许可","河南政务服务网","https://www.hnzwfw.gov.cn/"]
[423,"交通运输局","在普通公路建筑控制区内埋设管道设施许可","河南政务服务网","https://www.hnzwfw.gov.cn/"]
[424,"交通运输局","道路旅客运输补发《道路运输经营许可证》","河南政务服务网","https://www.hnzwfw.gov.cn/"]
[425,"交通运输局","道路旅客运输《道路运输经营许可证》到期换发","河南政务服务网","https://www.hnzwfw.gov.cn/"]
[426,"交通运输局","普通货物营运车辆转籍、过户道路运输证配发","河南政务服务网","https://www.hnzwfw.gov.cn/"]
[427,"交通运输局","在普通公路用地范围内埋设电缆设施许可","河南政务服务网","https://www.hnzwfw.gov.cn/"]
[428,"交通运输局","道路普通货物运输企业终止经营","河南政务服务网","https://www.hnzwfw.gov.cn/"]
[429,"交通运输局","穿越普通公路修建渡槽设施许可","河南政务服务网","https://www.hnzwfw.gov.cn/"]
[430,"交通运输局","跨越普通公路架设管线设施许可","河南政务服务网","https://www.hnzwfw.gov.cn/"]
[431,"交通运输局","在普通公路用地范围内架设管道设施许可","河南政务服务网","https://www.hnzwfw.gov.cn/"]
[432,"交通运输局","更新采伐普通公路护路林审批","河南政务服务网","https://www.hnzwfw.gov.cn/"]
[433,"交通运输局","道路普通货运车辆恢复营运","河南政务服务网","https://www.hnzwfw.gov.cn/"]
[434,"交通运输局","穿越普通公路埋设电缆设施许可","河南政务服务网","https://www.hnzwfw.gov.cn/"]
[435,"交通运输局","道路客运（班线）经营终止经营","河南政务服务网","https://www.hnzwfw.gov.cn/"]
[{"$f":"ROW()-2","v":436},"交通运输局","道路客运（班线）经营许可注销","河南政务服务网","https://www.hnzwfw.gov.cn/"]
[437,"交通运输局","普通机动车驾驶员培训教练场地变更备案","河南政务服务网","https://www.hnzwfw.gov.cn/"]
[438,"交通运输局","因修建机场建设工程需要占用、挖掘普通公路审批","河南政务服务网","https://www.hnzwfw.gov.cn/"]
[439,"交通运输局","道路普通货物运输驾驶员资格证（注销）","河南政务服务网","https://www.hnzwfw.gov.cn/"]
[440,"交通运输局","道路旅客运输驾驶员资格证（补证）","河南政务服务网","https://www.hnzwfw.gov.cn/"]
[441,"交通运输局","因修建通信建设工程需要占用、挖掘普通公路审批","河南政务服务网","https://www.hnzwfw.gov.cn/"]
[442,"交通运输局","利用普通公路隧道铺设电缆设施许可","河南政务服务网","https://www.hnzwfw.gov.cn/"]
[443,"交通运输局","道路普通货运车辆报停","河南政务服务网","https://www.hnzwfw.gov.cn/"]
[444,"交通运输局","申请普通机动车驾驶员培训经营范围备案","河南政务服务网","https://www.hnzwfw.gov.cn/"]
[445,"交通运输局","道路旅客运输驾驶员资格证（换证）","河南政务服务网","https://www.hnzwfw.gov.cn/"]
[446,"交通运输局","道路旅客运输驾驶员资格证（注销）","河南政务服务网","https://www.hnzwfw.gov.cn/"]
[447,"交通运输局","道路客运站《道路运输经营许可证》到期换发","河南政务服务网","https://www.hnzwfw.gov.cn/"]
[448,"交通运输局","取消普通机动车驾驶员培训经营范围备案","河南政务服务网","https://www.hnzwfw.gov.cn/"]
[449,"交通运输局","在普通公路建筑控制区内埋设电缆设施许可","河南政务服务网","https://www.hnzwfw.gov.cn/"]
[450,"交通运输局","道路客运站补发《道路运输经营许可证》","河南政务服务网","https://www.hnzwfw.gov.cn/"]